Cogmind - Beta 16 --- EXPLORER MODE // 2026.01.27 @ 15:40:28 Player: K.K.Y. Result: Destroyed by Lightning with EMDS Performance ------------- Evolutions (5) 2500 Regions Visited (12) 2400 Robots Destroyed (181) 905 Value Destroyed (7231) 7231 Prototype IDs (25) 500 Alien Tech Used (0) 0 Bonus (4845) 4845 TOTAL SCORE: 18381 Bonus ------- High Alert Combat Kills 108 Follower Combat Kills 2203 Network Hubs Disabled 400 Delivered SUBCON Basin 2000 Built Enhanced Grunts 300 Met R17 at Cetus 500 Friendly Fire -666 Cogmind --------- Core Integrity 0/1000 Matter 300/300 Energy 3/100 System Corruption 24% Temperature Cool (0) Movement Core (100) Ox1 Location -5/Hub_04(d) Parts ------- > --- POWER (2) -------- (None) > --- PROPULSION (6) --- (None) > --- UTILITY (8) ------ Advanced Heat Sink Improved Target Analyzer Improved Dynamic Insulation System > --- WEAPON (2) ------- (None) > --- INVENTORY (5) ---- Advanced Heat Sink Advanced System Restoration Module Advanced KE Penetrator Advanced KE Penetrator Improved Plasma Cutter Peak State ------------ > --- POWER ------------ Quantum Reactor Quantum Reactor > --- PROPULSION ------- Heavy Treads Heavy Treads Centrium Heavy Treads > --- UTILITY ---------- Advanced Heat Sink Improved Cooling System Advanced Particle Charger Centrium Medium Armor Plating Centrium Medium Armor Plating Centrium Medium Armor Plating Experimental Thermal Shield Experimental Thermal Shield > --- WEAPON ----------- Advanced Variable Charge Gun Neutron Cannon > --- INVENTORY -------- Advanced Heat Sink Authchip [Propulsion] Advanced KE Penetrator Advanced KE Penetrator Improved Plasma Cutter [Rating: 139] Favorites ----------- Power Improved Deuterium Engine Engine Improved Deuterium Engine Power Core Neutrino Core Reactor Quantum Reactor Propulsion Armored Treads Treads Armored Treads Leg Thunder Leg Utility Improved Heat Sink Device Improved Heat Sink Storage High-capacity Storage Unit Processor Improved Target Analyzer Protection Makeshift Light Armor Plating Weapon Slug Cannon Energy Gun Particle Gun Energy Cannon Neutron Cannon Ballistic Gun Flak Gun Ballistic Cannon Slug Cannon Special Weapon Mining Laser Impact Weapon Impact Mace Slashing Weapon Power Sword Build | -11 -10 -10 -10 -7 -7 -5 -5 -5 -5 -5 -5 -5 ------- Run | Yrd Mat Min Sub Rec Scr Fac Was Fac Ext Cet Arc Hub Slots Evolved 11 | . 1 . . . . 10 . . . . . . Power 1 | . . . . . . 1 . . . . . . Propulsion 4 | . . . . . . 4 . . . . . . Utility 6 | . 1 . . . . 5 . . . . . . Weapon . | . . . . . . . . . . . . . Parts Attached 143 | 7 5 5 14 7 2 34 2 16 18 17 2 14 Power 22 | 1 1 . 3 1 . 7 1 3 3 2 . . Engine 5 | 1 1 . 1 1 . 1 . . . . . . Core 14 | . . . 2 . . 6 . 3 3 . . . Reactor 3 | . . . . . . . 1 . . 2 . . Propulsion 32 | 2 1 1 3 3 . 5 . 5 1 1 1 9 Treads 18 | 2 1 1 3 3 . 5 . . . 1 1 1 Leg 14 | . . . . . . . . 5 1 . . 8 Wheel . | . . . . . . . . . . . . . Hover . | . . . . . . . . . . . . . Flight . | . . . . . . . . . . . . . Utility 56 | 2 2 2 3 . 1 17 1 5 9 9 1 4 Device 40 | 1 1 2 . . . 13 1 5 7 6 1 3 Storage 3 | 1 1 . 1 . . . . . . . . . Processor 1 | . . . . . . . . . . . . 1 Hackware . | . . . . . . . . . . . . . Protection 12 | . . . 2 . 1 4 . . 2 3 . . Artifact . | . . . . . . . . . . . . . Weapon 33 | 2 1 2 5 3 1 5 . 3 5 5 . 1 Energy Gun 8 | 1 . 2 1 1 . . . 1 1 1 . . Energy Cannon 6 | . 1 . . . . 2 . . 1 1 . 1 Ballistic Gun 8 | 1 . . 1 1 . . . 1 1 3 . . Ballistic Cannon 7 | . . . 2 1 1 2 . 1 . . . . Launcher . | . . . . . . . . . . . . . Special Weapon 2 | . . . 1 . . . . . 1 . . . Impact Weapon 1 | . . . . . . 1 . . . . . . Slashing Weapon 1 | . . . . . . . . . 1 . . . Piercing Weapon . | . . . . . . . . . . . . . Special Melee Weapon . | . . . . . . . . . . . . . Unidentified Prototypes 13 | . . . . . . 3 1 . . 6 . 3 Parts Lost 41 | . . . 3 . . 2 10 . 5 3 . 18 Power 3 | . . . . . . . 1 . . . . 2 Propulsion 11 | . . . . . . . 2 . 1 2 . 6 Utility 20 | . . . 2 . . 1 5 . 4 1 . 7 Weapon 7 | . . . 1 . . 1 2 . . . . 3 Highest Loss Streak 13 | . . . 1 . . 2 10 . 3 3 . 13 To Critical Strikes 3 | . . . . . . 1 2 . . . . . Average Backups 12 | 1 5 13 13 12 20 19 14 4 4 4 5 5 Power . | . . 2 2 . . . . . . . . . Propulsion . | . . 2 1 1 . . . 1 1 . . . Utility 6 | . 2 5 5 6 11 12 9 2 2 2 2 2 Weapon 3 | . 1 2 2 2 6 5 3 . . . 2 2 Tool/Special . | . . . . . . . . . . . . . Unused Backups 39 | . . . 7 1 5 9 13 . . 1 1 2 Power 1 | . . . 1 . . . . . . . . . Propulsion 3 | . . . 2 1 . . . . . . . . Utility 21 | . . . 4 . 2 3 8 . . 1 1 2 Weapon 10 | . . . . . 3 4 3 . . . . . Tool/Special 4 | . . . . . . 2 2 . . . . . Average Slot Usage (%) 91 | . 98 100 99 100 100 84 59 45 87 73 80 79 Engine 6 | . 12 12 5 12 12 6 . . . . . . Core 3 | . . . 6 . . 4 4 7 11 5 . . Treads 19 | . 25 25 25 25 25 24 14 . . 6 13 12 Leg 4 | . . . . . . . . 20 25 2 . 6 Device 20 | . 23 25 14 12 12 26 26 8 30 35 27 24 Storage 7 | . 12 12 12 12 12 5 3 . . . . . Protection 7 | . . . 8 12 12 4 . . 8 5 16 14 Energy Gun 7 | . 12 24 16 . . . . . 4 4 5 4 Energy Cannon 1 | . 5 . . . . 1 . . . 1 5 4 Ballistic Gun 2 | . 6 . . 9 . . . 2 2 4 . . Ballistic Cannon 6 | . . . 7 14 25 7 2 4 . . . . Peak Build Rating 139 | 7 11 18 43 43 35 112 112 79 94 122 126 139 Average Rating 54 | 5 9 17 24 34 34 89 73 47 86 97 124 124 On Entrance 51 | . 7 11 18 43 34 35 112 2 79 83 122 126 Avg Prop Armor Cover (%) 22 | . . . . . . . . . . . . 22 Naked Turns 49 | . . . . . . . 36 13 . . . . Heaviest Build 95 | 20 32 33 61 68 68 95 91 55 81 85 84 88 Greatest Support 220 | 40 40 40 40 48 48 198 194 107 110 150 178 220 Greatest Overweight (x) 5 | . . . 1 1 1 1 . . . . . 5 Average Overweight (x) . | . . . . 1 1 . . . . . . . Largest Inventory Capacity 20 | 10 15 15 20 20 20 20 20 5 5 5 5 5 Average Capacity 14 | 9 11 15 15 20 20 20 14 5 5 5 5 5 Most Carried 20 | 5 8 14 20 20 20 20 20 5 5 5 5 5 Average Carried 13 | 1 5 13 15 17 19 19 14 4 4 4 5 4 Final Capacity 20 | 10 15 15 20 20 20 20 5 5 5 5 5 5 Final Carried 20 | 2 7 14 19 20 20 20 5 5 5 5 5 5 Class Distribution -------------------- 54% | Hacker-Mutant 23% | Commander-Mutant 22% | Scavenger-Mutant Dominant Class ---------------- Hacker-Mutant | -10/Materials Hacker-Mutant | -10/Mines Hacker-Mutant | -10/Subcaves Commander-Mutant | -7/Recycling Commander-Mutant | -7/Scraptown Hacker-Mutant | -5/Factory Hacker-Mutant | -5/Waste Hacker-Mutant | -5/Factory Scavenger-Mutant | -5/Extension Scavenger-Mutant | -5/Cetus Scavenger-Mutant | -5/Archives Scavenger-Mutant | -5/Hub_04(d) Resources | -11 -10 -10 -10 -7 -7 -5 -5 -5 -5 -5 -5 -5 ----------- Run | Yrd Mat Min Sub Rec Scr Fac Was Fac Ext Cet Arc Hub Matter Collected 4638 | 291 171 60 320 278 30 1847 54 310 768 324 20 165 Remotely . | . . . . . . . . . . . . . Salvage Created 7301 | 117 475 123 589 238 . 1900 . 170 2098 165 81 1345 Parts 300 | 12 30 11 38 6 . 65 . 10 75 7 3 43 Haulers Intercepted 8 | . 2 . . . . 1 . . 2 . . 3 Recyclers Shooed 6 | . . . . 2 . 3 . . 1 . . . Parts Field Recycled . | . . . . . . . . . . . . . Retrieved Matter . | . . . . . . . . . . . . . Parts Self-Destructed . | . . . . . . . . . . . . . Prevented . | . . . . . . . . . . . . . Parts Restored . | . . . . . . . . . . . . . Kills | -11 -10 -10 -10 -7 -7 -5 -5 -5 -5 -5 -5 -5 ------- Run | Yrd Mat Min Sub Rec Scr Fac Was Fac Ext Cet Arc Hub Combat Hostiles Destroyed 129 | . 11 3 18 2 . 47 . 3 26 2 1 16 Guns 54 | . 10 3 9 . . . . . 21 2 . 9 Cannons 71 | . 1 . 9 2 . 45 . 3 3 . 1 7 Classes Destroyed 19 | 2 5 1 5 1 . 3 . . 1 . . 1 Worker 7 | . . 1 . . . 2 . . 1 . . 3 Builder 9 | . 2 . . . . 2 . . 3 . . 2 Tunneler 4 | 3 1 . . . . . . . . . . . Hauler 8 | . 2 . . . . 1 . . 2 . . 3 Recycler 7 | 1 . . . 3 . 1 . . 1 . . 1 Operator 1 | . . . . . . . . . . . . 1 Turret 2 | . . . 2 . . . . . . . . . Watcher 10 | . 3 . . . . 4 . . . 1 . 2 Swarmer 22 | . 6 1 4 . . 5 . . 3 . . 3 Grunt 40 | . 5 2 1 . . 15 . . 9 . . 8 Brawler 3 | . . . . . . 1 . . 1 . . 1 Duelist 4 | . . . . . . 3 . . 1 . . . Sentry 17 | . . . 1 1 . 6 . 1 4 . 1 3 Hunter 10 | . . . . . . 2 . 2 6 . . . Programmer 17 | . . . . 1 . 15 . . . . . 1 Behemoth 2 | . . . . . . . . . 2 . . . Cetus Guard 2 | . . . . . . . . . . 2 . . Artisan 2 | . . . 2 . . . . . . . . . Subdweller 12 | . . . 12 . . . . . . . . . Zionite 2 | . . . 2 . . . . . . . . . Thug 1 | . . . . . . . . . 1 . . . Butcher 1 | . . . . . . . . . 1 . . . Best Kill Streak 8 | 2 4 2 6 4 . 7 . 2 8 2 1 7 Combat Bots Only 5 | . 3 2 4 1 . 5 . 2 5 1 1 5 Max Kills in Single Turn 2 | 1 2 1 1 1 . 2 . 1 2 1 1 2 Gunslinging 1 | . 1 . . . . . . . . . . . Exploded . | . . . . . . . . . . . . . Melee . | . . . . . . . . . . . . . Uniques/NPCs Destroyed . | . . . . . . . . . . . . . Combat | -11 -10 -10 -10 -7 -7 -5 -5 -5 -5 -5 -5 -5 -------- Run | Yrd Mat Min Sub Rec Scr Fac Was Fac Ext Cet Arc Hub Hostile Shots Fired 1243 | . 49 6 88 14 . 351 17 40 243 36 5 394 Missed 404 | . 14 1 28 4 . 110 1 12 96 17 . 121 Hits 839 | . 35 5 60 10 . 241 16 28 147 19 5 273 Melee 23 | . . . . . . 7 16 . . . . . Projectile 816 | . 35 5 60 10 . 234 . 28 147 19 5 273 AOE 5 | . . . 2 . . 1 . . . . . 2 Critical Strikes 61 | . 1 . . . . 15 9 3 5 4 . 24 Part Disruptions 6 | . . . . . . 3 . . . . . 3 Actively Blocked 4 | . . . . . . 3 . . . . . 1 Damage Taken 10422 | . 238 33 727 72 . 2678 453 265 1219 264 67 4406 Core 1181 | . 30 20 104 . . 267 55 78 70 54 10 493 Absorbed by Shields 779 | . . . . . . 118 . 40 530 91 . . Ignored by Resistances 8347 | . 155 21 369 45 . 2093 258 210 1636 207 65 3288 Core Remaining (%) 69 | 100 . . . . 38 . . . . . . . Volleys Fired 534 | 7 43 6 64 11 . 181 2 9 131 18 5 57 Largest 2 | 2 2 2 2 2 . 2 1 2 2 2 2 2 Hottest 170 | 70 110 128 165 73 . 145 98 79 132 123 170 170 Shots Fired 930 | 14 86 12 124 23 . 271 2 11 232 35 7 113 Gun 510 | 14 80 12 88 11 . . . 2 221 23 2 57 Cannon 409 | . 6 . 25 12 . 271 2 9 11 12 5 56 Launcher . | . . . . . . . . . . . . . Special 11 | . . . 11 . . . . . . . . . Kinetic 460 | 7 37 . 25 23 . 228 . 10 112 18 . . Thermal 470 | 7 49 12 99 . . 43 2 1 120 17 7 113 Explosive . | . . . . . . . . . . . . . Electromagnetic . | . . . . . . . . . . . . . Robot Hit Streak 60 | 12 30 9 35 13 . 28 5 15 31 50 57 60 Robot Miss Streak 5 | . 2 1 2 2 . 3 . . 5 . . 2 Penetration Max 1 | . . . . . . 1 . . 1 1 . . Secondary Targets 9 | . 3 . 1 . . . . . 4 1 . . Max Gunslinging Chain 1 | . 1 . 1 . . . . . 1 1 . . Shots Hit Robots 741 | 12 66 10 84 21 . 224 6 10 185 35 7 81 Core Hits 318 | 5 25 6 50 14 . 93 . 4 66 11 3 41 Critical Kills 9 | . . . . . . . . 3 6 . . . Critical Parts Destroyed 14 | . . . . . . 7 . 3 3 1 . . Critical Strikes 55 | . 1 1 4 . . 27 . 6 13 3 . . Burn 9 | . 1 1 4 . . . . . 3 . . . Destroy 25 | . . . . . . 6 . 6 10 3 . . Blast 19 | . . . . . . 19 . . . . . . Smash 2 | . . . . . . 2 . . . . . . Melee Attacks 59 | . . . . . . 3 4 . 52 . . . Impact 7 | . . . . . . 3 4 . . . . . Slashing 52 | . . . . . . . . . 52 . . . Piercing . | . . . . . . . . . . . . . Sneak Attacks 2 | . . . . . . . . . 2 . . . Combat Hostiles . | . . . . . . . . . . . . . Follow-up Attacks . | . . . . . . . . . . . . . Damage Inflicted 21056 | 149 881 154 1573 640 . 7421 303 135 4711 1132 253 3704 Guns 9283 | 149 793 154 1015 300 . . . 17 4455 717 65 1618 Cannons 11049 | . 88 . 558 340 . 7290 66 118 73 415 188 1913 Explosions 117 | . . . . . . . . . . . . 117 Melee 500 | . . . . . . 131 237 . 132 . . . Ramming 107 | . . . . . . . . . 51 . . 56 Kinetic 10772 | 61 345 . 558 640 . 6164 . 135 2304 565 . . Thermal 9677 | 88 536 154 1015 . . 1126 66 . 2224 567 253 3648 Explosive . | . . . . . . . . . . . . . Electromagnetic . | . . . . . . . . . . . . . Impact 368 | . . . . . . 131 237 . . . . . Slashing 132 | . . . . . . . . . 132 . . . Piercing . | . . . . . . . . . . . . . Highest Corruption 24 | . . . . 1 . 2 6 6 9 9 . 24 Average Corruption 4 | . . . . 1 . 1 3 6 7 7 . 10 Corruption Purged 13 | . . . . . . 3 . . . 9 . 1 Corruption Blocked . | . . . . . . . . . . . . . Effects 131 | . . . . 15 . 4 4 12 64 11 . 21 Message Errors 30 | . . . . 5 . 1 2 1 17 2 . 2 Matter Fused 30 | . . . . 3 . 1 2 2 14 1 . 7 Heat Flow Errors 11 | . . . . . . . . 1 6 3 . 1 Energy Discharges 21 | . . . . 4 . . . 3 11 1 . 2 Parts Rejected 3 | . . . . . . . . 1 1 . . 1 Parts Fused 2 | . . . . . . . . 1 . 1 . . Data Loss (minor) 8 | . . . . 1 . . . . 6 1 . . Data Loss (major) 7 | . . . . 1 . . . 1 3 1 . 1 Misfires 8 | . . . . 1 . 1 . 1 3 1 . 1 Alerts 2 | . . . . . . . . 1 1 . . . Misdirections 6 | . . . . . . . . . . . . 6 Weapon Failures 3 | . . . . . . 1 . . 2 . . . Overload Shots . | . . . . . . . . . . . . . Overflow Damage 356 | . . . 3 61 . 240 . . . . . 52 Projectiles 269 | . . . 3 61 . 154 . . . . . 51 Explosions . | . . . . . . . . . . . . . Melee 87 | . . . . . . 86 . . . . . 1 Knockbacks 65 | . . . 8 2 . 53 . 2 . . . . Impact 2 | . . . . . . 2 . . . . . . Kinetic 62 | . . . 8 2 . 50 . 2 . . . . Secondary 1 | . . . . . . 1 . . . . . . Self-Inflicted Damage . | . . . . . . . . . . . . . Shots . | . . . . . . . . . . . . . Rammed 4 | . . . . . . . . . . . . 4 Targets Rammed 7 | . . . . . . . . . 3 . . 4 Kicked 3 | . . . . . . . . . 3 . . . Crushed . | . . . . . . . . . . . . . Highest Temperature 304 | 27 304 57 . . . 79 . 162 206 214 . 197 Average Temperature 46 | 12 123 26 . . . 19 . 60 29 109 . 28 Received Heat Transfer 2243 | . 195 27 141 18 . 797 . 21 240 12 18 774 Effects 1 | . 1 . . . . . . . . . . . Energy Bleed 1 | . 1 . . . . . . . . . . . Siege Activations . | . . . . . . . . . . . . . Martial Activations . | . . . . . . . . . . . . . Shielding Activations . | . . . . . . . . . . . . . Robots Disrupted . | . . . . . . . . . . . . . Combat Hostiles . | . . . . . . . . . . . . . Robots Corrupted 3 | . . . . . . 1 . . 1 . . 1 Combat Hostiles 1 | . . . . . . 1 . . . . . . Parts Fried 12 | . 2 . . . . 2 . . 4 . . 4 Impact Corruptions 4 | . . . . . . 2 . . 1 . . 1 Robots Melted 3 | . . . . . . 1 . . 2 . . . Combat Hostiles 3 | . . . . . . 1 . . 2 . . . Parts Melted 24 | 1 3 1 3 . . 2 . . 12 . . 2 Heat Transferred 12529 | 259 1591 444 2664 . . 1456 100 . 3553 610 74 1778 Parts Sabotaged . | . . . . . . . . . . . . . Parts Stolen . | . . . . . . . . . . . . . Parts Stripped . | . . . . . . . . . . . . . Power Chain Reactions 2 | . . . . . . . . . . . . 2 Alert | -11 -10 -10 -10 -7 -7 -5 -5 -5 -5 -5 -5 -5 ------- Run | Yrd Mat Min Sub Rec Scr Fac Was Fac Ext Cet Arc Hub Maximum Alert Level 2 | . . . . . . . . . . . . 2 Low Security (%) 91 | 100 100 100 . 100 . 100 100 100 100 100 100 15 Level 1 2 | . . . . . . . . . . . . 20 Level 2 6 | . . . . . . . . . . . . 63 Level 3 . | . . . . . . . . . . . . . Level 4 . | . . . . . . . . . . . . . Level 5 . | . . . . . . . . . . . . . High Security . | . . . . . . . . . . . . . Max Security . | . . . . . . . . . . . . . Peak Influence 565 | 10 70 50 . 43 . 143 28 37 136 88 84 565 Initial 28 | . . . . . . . 28 . . 14 . 5 Average 53 | 2 7 1 . 1 . 36 5 4 30 10 45 374 Influence Increases 5261 | 20 332 86 205 147 . 1583 . 82 1107 201 114 1384 Destroy 0b10 Robot/C 3300 | . 220 60 160 80 . 1020 . 60 780 140 80 700 Destroy 0b10 Robot/NC 290 | 20 40 5 . 15 . 70 . . 45 10 . 85 Destroy Leader 648 | . 60 20 . . . 240 . 20 134 . . 174 Allied During Kill 288 | . . 1 . 6 . 21 . . 54 21 24 161 Trap Triggered on 0b10 10 | . 10 . . . . . . . . . . . Successful Hack 206 | . 2 . . 31 . 43 . . 53 . . 77 Disable Machine 76 | . . . . . . 24 . . 8 . 4 40 Destroy Structure 323 | . . . . 15 . 150 . 2 18 30 6 102 Lose Combat Pursuer 120 | . . . 45 . . 15 . . 15 . . 45 Influence Decreases 5052 | 20 332 86 205 147 . 1464 119 82 1071 237 90 1199 Entered New Map 132 | . . . . . . . 91 . . 22 . 19 Time Decay 4464 | 20 332 86 205 147 . 1401 28 82 981 172 90 920 Lost Part 280 | . . . . . . 20 . . 50 30 . 180 Lost Ally 176 | . . . . . . 43 . . 40 13 . 80 Squads Dispatched 37 | . 1 1 . . . 14 . 4 8 . . 9 Investigation 15 | . 1 1 . . . 5 . 2 3 . . 3 Extermination 8 | . . . . . . 6 . . . . . 2 Reinforcement 13 | . . . . . . 2 . 2 5 . . 4 Assault . | . . . . . . . . . . . . . Garrison 1 | . . . . . . 1 . . . . . . Intercept . | . . . . . . . . . . . . . Searches Triggered . | . . . . . . . . . . . . . Construction Impeded 5 | . . . . . . 1 . . 3 . . 1 Haulers Reinforced 2 | . . . . . . . . . . . . 2 Active Scanning Responses . | . . . . . . . . . . . . . Cargo Convoy Interrupts . | . . . . . . . . . . . . . Stealth | -11 -10 -10 -10 -7 -7 -5 -5 -5 -5 -5 -5 -5 --------- Run | Yrd Mat Min Sub Rec Scr Fac Was Fac Ext Cet Arc Hub Distress Signals 9 | . 2 1 . . . 1 . . 2 2 . 1 Communications Jammed . | . . . . . . . . . . . . . Distress Signals . | . . . . . . . . . . . . . Times Spotted 220 | . 16 3 19 4 . 58 6 7 45 11 4 47 Peak Tracking Total 7 | . 4 2 3 2 . 4 6 3 3 5 1 7 Tactical Retreats 7 | . . . 2 . . 1 . . 1 . . 3 Traps | -11 -10 -10 -10 -7 -7 -5 -5 -5 -5 -5 -5 -5 ------- Run | Yrd Mat Min Sub Rec Scr Fac Was Fac Ext Cet Arc Hub Traps Triggered 14 | . . . 3 . . 6 . 1 2 . . 2 Indirectly . | . . . . . . . . . . . . . Trap Hack Attempts . | . . . . . . . . . . . . . Triggered . | . . . . . . . . . . . . . Disarmed . | . . . . . . . . . . . . . Reprogrammed 11 | . 11 . . . . . . . . . . . Reused 1 | . 1 . . . . . . . . . . . Traps Extracted . | . . . . . . . . . . . . . Installed . | . . . . . . . . . . . . . Triggered 1 | . 1 . . . . . . . . . . . Machines | -11 -10 -10 -10 -7 -7 -5 -5 -5 -5 -5 -5 -5 ---------- Run | Yrd Mat Min Sub Rec Scr Fac Was Fac Ext Cet Arc Hub Machines Disabled 19 | . . . . . . 6 . . 2 . 1 10 Max in Single Turn 1 | . . . . . . 1 . . 1 . . 1 Garrison Access 2 | . . . . . . 2 . . . . . . Network Hub 2 | . . . . . . . . . . . . 2 Machines Repaired . | . . . . . . . . . . . . . Machines Dismantled 1 | . . . . . . . . . 1 . . . Machines Sabotaged . | . . . . . . . . . . . . . Overloaded Fab Kills . | . . . . . . . . . . . . . Hacking | -11 -10 -10 -10 -7 -7 -5 -5 -5 -5 -5 -5 -5 --------- Run | Yrd Mat Min Sub Rec Scr Fac Was Fac Ext Cet Arc Hub Machines Accessed 55 | . 8 1 4 10 . 10 . 3 13 . . 6 Terminals 37 | . 7 . . 5 . 5 . 2 12 . . 6 Fabricators . | . . . . . . . . . . . . . Repair Stations . | . . . . . . . . . . . . . Recycling Units 10 | . 1 . . 5 . 3 . . 1 . . . Scanalyzers 1 | . . . . . . . . 1 . . . . Garrison Access 2 | . . . . . . 2 . . . . . . Total Hacks 128 | . 21 1 9 24 . 21 . 10 27 . . 15 Successful 68 | . 17 1 9 11 . 11 . 3 10 . . 6 Failed 60 | . 4 . . 13 . 10 . 7 17 . . 9 Catastrophic 8 | . . . . 2 . 2 . 2 . . . 2 Database Lockouts . | . . . . . . . . . . . . . Manual 24 | . 9 . . 3 . 3 . . 3 1 . 5 Terminals 91 | . 20 . . 15 . 12 . 5 24 . . 15 Fabricators . | . . . . . . . . . . . . . Repair Stations . | . . . . . . . . . . . . . Recycling Units 19 | . 1 . . 9 . 6 . . 3 . . . Scanalyzers 5 | . . . . . . . . 5 . . . . Garrison Access 3 | . . . . . . 3 . . . . . . Terminal Hacks 40 | . 9 1 9 4 . 4 . 1 9 . . 3 Record 6 | . . . 6 . . . . . . . . . Part Schematic 10 | . . . . 4 . 3 . . 1 . . 2 Robot Schematic 2 | . . . . . . 1 . . . . . 1 Robot Analysis 2 | . 2 . . . . . . . . . . . Open Door 11 | . . 1 1 . . . . 1 8 . . . Locate Traps 4 | . 4 . . . . . . . . . . . Reprogram Traps 3 | . 3 . . . . . . . . . . . Proto ID Catalog 1 | . . . 1 . . . . . . . . . Release Object 1 | . . . 1 . . . . . . . . . Fabricator Hacks . | . . . . . . . . . . . . . Repair Station Hacks . | . . . . . . . . . . . . . Recycling Unit Hacks 9 | . 1 . . 5 . 3 . . . . . . Retrieve Components 9 | . 1 . . 5 . 3 . . . . . . Scanalyzer 2 | . . . . . . . . 2 . . . . Insert Component 1 | . . . . . . . . 1 . . . . Analyze 1 | . . . . . . . . 1 . . . . Garrison Access Hacks 2 | . . . . . . 2 . . . . . . Seal Access 2 | . . . . . . 2 . . . . . . Unauthorized Hacks 15 | . 7 . . 2 . 2 . . 1 . . 3 Terminals 15 | . 7 . . 2 . 2 . . 1 . . 3 Botnet 15 | . 7 . . 2 . 2 . . 1 . . 3 Fabricators . | . . . . . . . . . . . . . Repair Stations . | . . . . . . . . . . . . . Recycling Units . | . . . . . . . . . . . . . Scanalyzers . | . . . . . . . . . . . . . Garrison Access . | . . . . . . . . . . . . . Data Cores Recovered 1 | . . . . . . 1 . . . . . . Used 1 | . . . . . . 1 . . . . . . Hacking Detections 36 | . 6 . . 6 . 7 . 2 10 . . 5 Full Trace Events 16 | . 1 . . 4 . 3 . 2 3 . . 3 Feedback Events 1 | . . . . . . . . . 1 . . . Corruption 1 | . . . . . . . . . 1 . . . Feedback Blocked . | . . . . . . . . . . . . . Robot Schematics Acquired 2 | . . . . . . 1 . . . . . 1 Robots Built . | . . . . . . . . . . . . . Authchips . | . . . . . . . . . . . . . Time . | . . . . . . . . . . . . . Total Robot Build Rating . | . . . . . . . . . . . . . Part Schematics Acquired 10 | . . . . 4 . 3 . . 1 . . 2 Parts Built . | . . . . . . . . . . . . . Authchips . | . . . . . . . . . . . . . Time . | . . . . . . . . . . . . . Total Part Build Rating . | . . . . . . . . . . . . . Part Studies Acquired . | . . . . . . . . . . . . . Parts Repaired . | . . . . . . . . . . . . . Time . | . . . . . . . . . . . . . Parts Recycled . | . . . . . . . . . . . . . Recycled Matter . | . . . . . . . . . . . . . Retrieved Matter . | . . . . . . . . . . . . . Retrieved Components 46 | . 10 . . 16 . 20 . . . . . . Parts Scanalyzed 1 | . . . . . . . . 1 . . . . Part Schematics Acquired . | . . . . . . . . . . . . . Parts Damaged . | . . . . . . . . . . . . . Bothacking | -11 -10 -10 -10 -7 -7 -5 -5 -5 -5 -5 -5 -5 ------------ Run | Yrd Mat Min Sub Rec Scr Fac Was Fac Ext Cet Arc Hub Used RIF Installer . | . . . . . . . . . . . . . Robots Hacked . | . . . . . . . . . . . . . Non-combat . | . . . . . . . . . . . . . Combat . | . . . . . . . . . . . . . Robot Hacks Applied . | . . . . . . . . . . . . . Relay Couplers Released . | . . . . . . . . . . . . . Fabnet Peak Effective % . | . . . . . . . . . . . . . Robots Rewired 10 | . . . . 10 . . . . . . . . Allies Hacked 3 | . . . . . . 3 . . . . . . Hacks Repelled . | . . . . . . . . . . . . . Allies | -11 -10 -10 -10 -7 -7 -5 -5 -5 -5 -5 -5 -5 -------- Run | Yrd Mat Min Sub Rec Scr Fac Was Fac Ext Cet Arc Hub Total Allies 31 | . . 3 . 10 . . . . 13 5 . . Largest Group 10 | . . 3 3 10 10 10 . . 8 6 5 4 Highest-Rated Group 631 | . . 40 40 199 199 199 . . 246 631 528 384 Highest-Rated Ally 159 | . . 16 16 40 40 40 . . 159 151 144 96 Total Orders . | . . . . . . . . . . . . . Ally Attacks 338 | . . . . 9 . 37 . . 117 47 28 100 Total Damage 9745 | . . . . 155 . 1419 . . 2125 1595 978 3473 Kills 62 | . . . . 2 . 11 . . 16 6 3 24 Allies Corrupted . | . . . . . . . . . . . . . Allies Melted . | . . . . . . . . . . . . . Intel | -11 -10 -10 -10 -7 -7 -5 -5 -5 -5 -5 -5 -5 ------- Run | Yrd Mat Min Sub Rec Scr Fac Was Fac Ext Cet Arc Hub Active Infowar (turns) 6786 | 89 1508 1173 883 . . 287 . 56 2194 596 . . Sensors 3061 | 89 1508 36 815 . . . . . 17 596 . . Structural 1205 | . . 1137 68 . . . . . . . . . Traps 2821 | . . . . . . . . 56 2194 571 . . ECM 287 | . . . . . . 287 . . . . . . Robot Analysis Total 2 | . 2 . . . . . . . . . . . Derelict Logs Recovered 3 | . . . 3 . . . . . . . . . Drone Launches . | . . . . . . . . . . . . . Drone Recoveries . | . . . . . . . . . . . . . Exploration | -11 -10 -10 -10 -7 -7 -5 -5 -5 -5 -5 -5 -5 ------------- Run | Yrd Mat Min Sub Rec Scr Fac Was Fac Ext Cet Arc Hub Turns Passed 18940 | 111 1508 1173 4085 2205 1718 3217 158 462 2194 694 127 1288 Spaces Moved 9423 | 59 834 634 2075 813 689 1515 145 340 1350 206 65 698 Core 141 | 20 . . . . . . 89 24 . . . 8 Treads 7396 | 39 834 634 2075 813 689 1515 56 . . 181 65 495 Legs 1886 | . . . . . . . . 316 1350 25 . 195 Wheels . | . . . . . . . . . . . . . Hover . | . . . . . . . . . . . . . Flight . | . . . . . . . . . . . . . Fastest Speed 50 | 50 160 160 160 245 245 160 50 50 120 120 160 100 Average Speed 168 | 122 160 164 171 249 245 166 94 115 120 155 160 150 Slowest Speed 470 | 160 160 165 255 255 245 245 165 120 120 160 160 470 Overloaded Moves . | . . . . . . . . . . . . . Propulsion Burnouts . | . . . . . . . . . . . . . Robots Hopped . | . . . . . . . . . . . . . Potential Cave-ins 1 | . . . . . . . . . . . . 1 Cave-ins Triggered 1 | . . . . . . . . . 1 . . . Exploration Rate (%) 67 | 4 99 99 96 99 47 36 84 10 97 57 74 72 Regions Visited 12 Branch Regions 8 Pre-discovered Areas 2 | . . . 2 . . . . . . . . . Known Exits Taken 10 | 1 1 1 1 1 1 . . 1 1 1 1 . Unknown Exits Taken . | . . . . . . . . . . . . . Scrap Searched 27 | . . 1 17 . 9 . . . . . . . Spaces Dug 6 | . . . . . . . . . 2 . . 4 Terrain Destroyed 92 | . . . . 3 . 46 . . 5 1 . 37 Melee . | . . . . . . . . . . . . . Projectile 72 | . . . . 3 . 46 . . 4 1 . 18 AOE 19 | . . . . . . . . . . . . 19 Terrain Rammed . | . . . . . . . . . . . . . Walls Destroyed . | . . . . . . . . . . . . . Machines Disabled . | . . . . . . . . . . . . . Actions | -11 -10 -10 -10 -7 -7 -5 -5 -5 -5 -5 -5 -5 --------- Run | Yrd Mat Min Sub Rec Scr Fac Was Fac Ext Cet Arc Hub Total 11460 | 83 921 748 2452 968 727 1945 157 393 1626 550 80 810 Wait 984 | 4 25 92 265 48 13 152 . 21 50 287 8 19 Move 9412 | 58 833 633 2074 812 688 1515 144 339 1349 205 64 698 Hop . | . . . . . . . . . . . . . Pick Up 90 | 7 10 9 8 21 11 14 1 2 1 5 . 1 Fast Attach 71 | 2 . . 1 . . 18 1 17 8 7 1 16 Attach 18 | 5 1 . 2 . . 5 3 1 . 1 . . Detach 3 | . . . . . . 1 1 . . 1 . . Swap 94 | . 5 6 17 11 3 19 . 2 15 12 1 3 Drop 122 | . 4 2 21 8 12 37 1 2 8 14 1 12 Fire 534 | 7 43 6 64 11 . 181 2 9 131 18 5 57 Melee 59 | . . . . . . 3 4 . 52 . . . Ram . | . . . . . . . . . . . . . Kick 3 | . . . . . . . . . 3 . . . Crush 4 | . . . . . . . . . . . . 4 Escape Stasis 1 | . . . . . . . . . 1 . . . Rewire 57 | . . . . 57 . . . . . . . . Trap . | . . . . . . . . . . . . . Miscellaneous 8 | . . . . . . . . . 8 . . . Route ------- -11/Scrapyard -10/Materials (discovered 5 exits: *Mat x3 / *Min / *Sub) -10/Mines (discovered 4 exits: *Mat x2 / *Exi / *Sub) -10/Subcaves (discovered 3 exits: *Mat x2 / *Rec) -7/Recycling (discovered 2 exits: *Fac / *Scr) -7/Scraptown -5/Factory (discovered 3 exits: *Fac x2 / *Upp) -5/Waste -5/Factory -5/Extension (discovered 2 exits: *Fac / *Cet) -5/Cetus (discovered 2 exits: *Fac / *Arc) -5/Archives (discovered 2 exits: *Fac / *Hub) -5/Hub_04(d) (discovered 2 exits: *Fac x2) History --------- Turn | Location | Event 8 | -11/Scrapyard | Identified exit to Materials 8 | -11/Scrapyard | Discovered exit to Materials (range 15) 112 | -11/Scrapyard | Entered Materials 112 | -10/Materials | Evolved 1 slot: Utility x1 307 | -10/Materials | Identified exit to Mines 307 | -10/Materials | Discovered exit to Mines (range 11) 318 | -10/Materials | Build established: Hacker-Mutant 462 | -10/Materials | Identified exit to Materials 462 | -10/Materials | Discovered exit to Materials (range 12) 914 | -10/Materials | Discovered exit to Materials (range 15) 1346 | -10/Materials | Discovered exit to Materials (range 16) 1433 | -10/Materials | Identified exit to Subcaves 1433 | -10/Materials | Discovered exit to Subcaves (range 8) 1620 | -10/Materials | Entered Mines 1621 | -10/Mines | Met a Derelict bent on vengeance 1626 | -10/Mines | Met a Derelict shopkeep closing up shop 1687 | -10/Mines | Discovered exit to Materials (range 10) 1768 | -10/Mines | Assembled infested the area 1853 | -10/Mines | Assisted by bots powering up and referring to "LRC-V3" 1940 | -10/Mines | Discovered exit to Materials (range 13) 1994 | -10/Mines | Discovered exit to Subcaves (range 8) 2211 | -10/Mines | Identified exit to Exiles 2211 | -10/Mines | Discovered exit to Exiles (range 5) 2793 | -10/Mines | Entered Subcaves 2793 | -10/Subcaves | Accompanied by 3 allies 2804 | -10/Subcaves | A swath of the cavern ceiling suddenly collapsed 3246 | -10/Subcaves | Visited Clippyterm 3251 | -10/Subcaves | Identified exit to Recycling 3251 | -10/Subcaves | Learned Research machine intel 3619 | -10/Subcaves | Learned location of Zion (-7) 3619 | -10/Subcaves | Met a Zionite searching for "candidates" 3661 | -10/Subcaves | Learned location of Storage (-7) 3868 | -10/Subcaves | Disturbed a concealed Subdweller 3878 | -10/Subcaves | Core integrity fell below 50% 4363 | -10/Subcaves | Visited 4L-MR0's lab 4590 | -10/Subcaves | Learned Materials terminal intel 5065 | -10/Subcaves | Identified exit to Materials 5065 | -10/Subcaves | Discovered exit to Materials (range 7) 5129 | -10/Subcaves | Learned 4 Materials zone layouts 5194 | -10/Subcaves | Discovered exit to Materials (range 12) 5199 | -10/Subcaves | Shifting Twisted Machinery released Sub. Monowheel 5216 | -10/Subcaves | Shifting Twisted Machinery released Sub. Power Source 6475 | -10/Subcaves | Found SUBCON Basin 6878 | -10/Subcaves | Entered Recycling 7315 | -7/Recycling | Identified exit to Factory 7315 | -7/Recycling | Discovered exit to Factory (range 5) 7347 | -7/Recycling | Build established: Commander-Mutant 7422 | -7/Recycling | Scanned before Scraplab entrance 7461 | -7/Recycling | Entered Scraplab 9035 | -7/Recycling | Identified exit to Scraptown 9035 | -7/Recycling | Discovered exit to Scraptown (range 2) 9083 | -7/Recycling | Entered Scraptown 9083 | -7/Scraptown | Accompanied by 10 allies 9083 | -7/Scraptown | System corruption cleaned by C-Scrubber 9555 | -7/Scraptown | Visited Bundlers 9715 | -7/Scraptown | Visited Artisan Demo Area 9754 | -7/Scraptown | Visited CPS Storage 9783 | -7/Scraptown | Visited The Evicted 9891 | -7/Scraptown | Discovered exit to Factory (range 11) 10801 | -7/Scraptown | Entered Factory 10801 | -5/Factory | Accompanied by 10 allies 10801 | -5/Factory | Evolved 10 slots: Power x1, Propulsion x4, Utility x5 11462 | -5/Factory | Lost 3 allies 11660 | -5/Factory | Lost 3 allies 11727 | -5/Factory | Build established: Hacker-Mutant 11934 | -5/Factory | Garrison activated, responded to threat 12759 | -5/Factory | Identified exit to Factory 12759 | -5/Factory | Discovered exit to Factory (range 4) 13152 | -5/Factory | Identified exit to Upper Caves 13152 | -5/Factory | Discovered exit to Upper Caves (range 15) 14004 | -5/Factory | Discovered exit to Factory (range 15) 14018 | -5/Factory | Sucked down chute 14018 | -5/Factory | Entered Waste 14033 | -5/Waste | EMP discharged 14072 | -5/Waste | Spotted C-40 Crusher 14072 | -5/Waste | Spotted C-40 Crusher 14091 | -5/Waste | Spotted C-40 Crusher 14100 | -5/Waste | Spotted C-40 Crusher 14107 | -5/Waste | Crushed by Compactor (1 part destroyed, 1 dropped) 14110 | -5/Waste | Crushed by Compactor (1 part destroyed) 14113 | -5/Waste | Crushed by Compactor (1 part destroyed, 1 dropped) 14116 | -5/Waste | Crushed by Compactor (0 parts destroyed, 1 dropped) 14119 | -5/Waste | Crushed by Compactor (1 part destroyed, 1 dropped) 14122 | -5/Waste | Crushed by Compactor (0 parts destroyed, 1 dropped) 14125 | -5/Waste | Crushed by Compactor (0 parts destroyed, 1 dropped) 14125 | -5/Waste | Crushed by Compactor (1 part destroyed) 14128 | -5/Waste | Crushed by Compactor (1 part destroyed, 1 dropped) 14128 | -5/Waste | Crushed by Compactor (0 parts destroyed, 1 dropped) 14132 | -5/Waste | Spotted C-40 Crusher 14133 | -5/Waste | EMP discharged 14140 | -5/Waste | Crushed by Compactor (1 part destroyed) 14163 | -5/Waste | Spotted C-40 Crusher 14168 | -5/Waste | Identified exit to Factory 14168 | -5/Waste | Discovered exit to Factory (range 13) 14171 | -5/Waste | Lost 10 parts (1p2n5u2w) 14176 | -5/Waste | Entered Factory 14635 | -5/Factory | Identified exit to Extension 14635 | -5/Factory | Discovered exit to Extension (range 5) 14638 | -5/Factory | Entered Extension 14693 | -5/Extension | Rescued a captive Derelict 14694 | -5/Extension | Rescued a captive Derelict 14711 | -5/Extension | Crushed by falling debris 14787 | -5/Extension | Rescued a captive Derelict 14835 | -5/Extension | Rescued a captive Derelict 14837 | -5/Extension | Rescued a captive Derelict 14876 | -5/Extension | Build established: Scavenger-Mutant 14900 | -5/Extension | Rescued a captive Derelict 14920 | -5/Extension | Rescued a captive Derelict 14920 | -5/Extension | Rescued a captive Derelict 15445 | -5/Extension | Spotted B-75 Beast 15772 | -5/Extension | Destroyed B-75 Beast 15795 | -5/Extension | Spotted B-75 Beast 15838 | -5/Extension | Disrupted transfer network 15856 | -5/Extension | Destroyed B-75 Beast 15990 | -5/Extension | Rescued a captive Derelict 16122 | -5/Extension | Rescued a captive Derelict 16123 | -5/Extension | Rescued a captive Derelict 16253 | -5/Extension | Lost 3 parts (1n2u) 16439 | -5/Extension | Rescued a captive Derelict 16586 | -5/Extension | Rescued A7 16786 | -5/Extension | Discovered exit to Factory (range 16) 16786 | -5/Extension | Identified exit to Cetus 16786 | -5/Extension | Discovered exit to Cetus (range 16) 16832 | -5/Extension | Entered Cetus 16832 | -5/Cetus | Accompanied by 3 allies (A7) 16837 | -5/Cetus | Acquired a Cetus Manufacturing Module code from A7 16848 | -5/Cetus | Spotted Cetus Guard 16848 | -5/Cetus | Spotted Cetus Guard 16851 | -5/Cetus | Spotted Cetus Guard 16851 | -5/Cetus | Spotted Cetus Guard 16855 | -5/Cetus | Destroyed Cetus Guard 16866 | -5/Cetus | Core integrity fell below 50% 16870 | -5/Cetus | Allies destroyed Cetus Guard 16874 | -5/Cetus | Allies destroyed Cetus Guard 16883 | -5/Cetus | Allies destroyed Cetus Guard 16903 | -5/Cetus | Lost 3 parts (2n1u) 16986 | -5/Cetus | Started Cetus Manufacturing Module 17011 | -5/Cetus | Manufactured an Enhanced Grunt 17036 | -5/Cetus | Manufactured an Enhanced Grunt 17061 | -5/Cetus | Manufactured an Enhanced Grunt 17086 | -5/Cetus | Manufactured an Enhanced Grunt 17111 | -5/Cetus | Manufactured an Enhanced Grunt 17313 | -5/Cetus | Identified exit to Archives 17313 | -5/Cetus | Discovered exit to Archives (range 15) 17371 | -5/Cetus | Spotted Cetus Guard 17371 | -5/Cetus | Spotted Cetus Guard 17374 | -5/Cetus | Spotted Cetus Guard 17374 | -5/Cetus | Spotted Cetus Guard 17393 | -5/Cetus | Destroyed Cetus Guard 17395 | -5/Cetus | Allies destroyed Cetus Guard 17395 | -5/Cetus | Allies destroyed Cetus Guard 17404 | -5/Cetus | Found Prototype Device 17404 | -5/Cetus | Identified Exp. Thermal Shield 17413 | -5/Cetus | Discovered exit to Factory (range 16) 17423 | -5/Cetus | Met Revision 17 17526 | -5/Cetus | Entered Archives 17526 | -5/Archives | Accompanied by 5 allies (A7) 17594 | -5/Archives | Discovered exit to Factory (range 16) 17619 | -5/Archives | Identified exit to Hub_04(d) 17619 | -5/Archives | Discovered exit to Hub_04(d) (range 14) 17653 | -5/Archives | Entered Hub_04(d) 17653 | -5/Hub_04(d) | Accompanied by 4 allies 17734 | -5/Hub_04(d) | Discovered exit to Factory (range 16) 18426 | -5/Hub_04(d) | Found Exp. Thermal Shield 18586 | -5/Hub_04(d) | Discovered exit to Factory (range 4) 18593 | -5/Hub_04(d) | Network Hub disabled 18610 | -5/Hub_04(d) | Spotted Lightning 18633 | -5/Hub_04(d) | Spotted Lightning 18646 | -5/Hub_04(d) | Spotted Lightning 18649 | -5/Hub_04(d) | Spotted Lightning 18684 | -5/Hub_04(d) | System corruption reached 10% 18850 | -5/Hub_04(d) | Core integrity fell below 20% 18855 | -5/Hub_04(d) | Network Hub disabled 18941 | -5/Hub_04(d) | Destroyed by Lightning with EMDS Last Messages --------------- 18898_ EMDS Slug penetrates Wall. 18898_ Arm. Leg destroyed. 18900_ U-05 Engineer builds a Door. 18905_ Penetrated by EMDS Slug. 18905_ U-05 Engineer lays Concrete. 18906_ U-05 Engineer builds a Wall. 18917_ EMDS Slug penetrates Wall. 18919_ System corrupted: Energy discharge (-1). 18919_ P-70 Sage misfires. 18925_ Penetrated by EMDS Slug. 18925_ Arm. Leg destroyed. 18926_ Penetrated by EMDS Slug. 18929_ Arm. Leg destroyed. 18929_ Penetrated by EMDS Slug. 18931_ Enh. Flexi-carbon Leg destroyed. 18932_ Penetrated by EMDS Slug. 18934_ System corrupted: Enh. Flexi-carbon Leg rejected. 18937_ Acquired 8 matter. 18941_ EMDS Slug penetrates Wall. Map ----- +----------------------------------------------------+ | " "" ## # ??# #?" " ?????? | | " """"""""""""""####+##### # " "??????? | | " [ !" " ???????? | | " " =% =%" ?????????? | | " """""""""""""""""#/#### #??????????? | | " " # ### # #??????????? | | " " # #?# / #??????????? | | " ! " # #?# * ## #??????????? | | " " # #?# ## #???????#### | | """""""""""" # #?# ## ######### # | | # #?# ## ##""" | | ## #?#####"### | | ################ #?????# #?# | | ???????????????###########?????# #?## ##""" | | ???????????????????????????#####/#### ## % | | ???????????????????????????# # < | | ???????????????????????????## # ## ## | | ????????????????????????????# # ###""" " | | ????????????????????????????# =# " " " | | ???????????????############## [[ # """""""" | | ???????????????# # [ =#= " | | ???????????????# """ "" # [ =#% """%] | | ???????????????# # #|####" "= | | ???????????????# """ "" # # #?# "/ | | ?????########??# # +/#?# *% | | ?????# ! #??# " """@ # #/#?## " | | ?????#"" ##?# # #%####"""% | | ?????#"T !#### """ "" # #//= " | | ?????#"" " =" # #= #/###"""" | | ?????# " %# +=! " "" [%#*%! #*## " ] | | ???### =+ %;%!* *%; % #=## """""# | | #### ####+### |# % ! [=# # ##= # | | ### ### =##;+#################+########"""# | | [| ## / % !!!! ==! =! =# | | " =| ## ######## !%!%=%!!]=! *%+ | | " = ## ########+####????# /! =!%[%[%% *# | | " ## #?# #????# " " " %* # | | ## ### """"" #????# " " " " " " # | | " " " # ## " ""T"" #????# " " " " " " " + | | " " "%+ ## " #????# # | | " " " # [= ## " ! ##################/######### | | #*%%=## # ############ ######## | | % ##[ ### ! # + % | | ####+#"# ############# " " # ! = | | = [* # # ! # " " # #############+#### | | # # # " " # # """T""" ## | | # # [ # # # " " " # | | " ] # # # " " # # = " " " # | | " % # # # " " # / " " " # | | " + + ! # " " # # ! # | +----------------------------------------------------+ Best States ------------- Heat Dissipation 143 Energy Generation 45 Energy Capacity 600 Matter Stores 300 Matter Capacity 300 Sight Range 16 Robot Scan Range 15 Terrain Scan Density 10 ECM Strength 2 Power Amplification 30 Base Temperature (-) 150 EM Shielding 3 Armor Coverage 675 Resistance: KI 55 Resistance: TH 65 Resistance: EX 35 Resistance: EM 60 Resistance: I 35 Resistance: S 35 Resistance: P 35 Phase Shifting 5 Evasion (%) 75 Target Analysis 6 Recoil Reduction 6 Particle Charging 25 Offensive Hacking 20 Authchip Count 2 Item Schematics ----------------- Gatling Laser | -7/Recycling | Hacked Imp. Plasma Cutter | -7/Recycling | Hacked KE Penetrator | -7/Recycling | Hacked Imp. Shock Absorption System | -7/Recycling | Hacked Linear Accelerator | -5/Factory | Hacked Lrn. Proton Cannon | -5/Factory | Hacked Lrn. Tractor Beam | -5/Factory | Hacked Hardcell Cannon | -5/Extension | Hacked Nova Cannon | -5/Hub_04(d) | Hacked Adv. Corruption Screen | -5/Hub_04(d) | Hacked Robot Schematics ------------------ H-66 Slayer | -5/Factory | Hacked B-60 Warrior | -5/Hub_04(d) | Hacked Fabricated ------------ Nothing Repaired ---------- Nothing Studied --------- None Alien Tech Used ----------------- None Achievements -------------- Streaker Challenges ------------ None Game ------ Seed PersonalReflexCannon Manual? 0 Play Time 01:33:41 Cumulative 315.4 hours Start 2026.01.27 @ 14:08:02 End 2026.01.27 @ 15:40:28 Sessions 1 Manual Loads 0 Difficulty Explorer Special Mode None Game No. 494 Rogue 0 Adventurer 0 Explorer 494 Win Type - Total 0 Types 0/0/0/0/0/0/0/0/0/0 Lore% 77 Gallery% 70 Achievement% 56 Wizard Run 0 Options --------- Layout 1 ASCII 0 Keyboard 0 Movement Mouse Keybinds 1 Fullscreen 1 Font 24/Smallcaps Map View 50x35 Zoom Use 0% Tactical HUD 1 Map Filters NONE Filters NONE Steam 1 RUN: 30729182-8d54-428c-bd3e-e1519fc8b54c